Cogmind - Beta 14 @@@ ROGUE MODE // 2024.08.14 @ 20:26:17 Player: JohnnyDongs Result: Destroyed by S-27 Virus with Autogun Performance ------------- Evolutions (1) 500 Regions Visited (6) 1200 Robots Destroyed (52) 260 Value Destroyed (1183) 1183 Prototype IDs (5) 100 Alien Tech Used (0) 0 Bonus (733) 733 TOTAL SCORE: 3976 Bonus ------- Follower Combat Kills 133 Met Imprinter 300 Was Imprinted 300 Cogmind --------- Core Integrity 0/400 Matter 300/300 Energy 100/100 System Corruption 2% Temperature Cool (0) Movement Core (50) Location -6/Proximity Caves Parts ------- > --- POWER (1) -------- (None) > --- PROPULSION (4) --- (None) > --- UTILITY (2) ------ Improved Melee Analysis Suite > --- WEAPON (2) ------- Heavy Hammer > --- INVENTORY (5) ---- Cryofiber Web Improved Heat Sink Hacking Drone Bay Phasing AFG Peak State ------------ > --- POWER ------------ Light Angular Momentum Engine > --- PROPULSION ------- Armored Treads Improved Hover Unit Improved Hover Unit Improved Hover Unit > --- UTILITY ---------- Cryofiber Web Medium Armor Plating > --- WEAPON ----------- Heavy Hammer Heavy Hammer > --- INVENTORY -------- Improved Heat Sink Transport Network Coupler Medium Armor Plating Missile Launcher Heavy Hammer [Rating: 24] Favorites ----------- Power Light Nuclear Core Engine Light Angular Momentum Engine Power Core Light Nuclear Core Propulsion Light Treads Treads Light Treads Hover Unit Improved Hover Unit Flight Unit Flight Unit Utility Cryofiber Web Device Cryofiber Web Storage Medium Storage Unit Processor Improved Melee Analysis Suite Protection Hardened Medium Armor Plating Weapon Heavy Hammer Energy Cannon Heavy Particle Cannon Ballistic Gun Assault Rifle Launcher Missile Launcher Impact Weapon Heavy Hammer Build | -11 -10 -10 -9 -9 -7 -6 ------- Run | Yrd Mat Min Mat Min Zio Pro Slots Evolved 2 | . . . 2 . . . Power . | . . . . . . . Propulsion 2 | . . . 2 . . . Utility . | . . . . . . . Weapon . | . . . . . . . Parts Attached 55 | 5 2 11 26 4 3 4 Power 5 | 1 . 3 1 . . . Engine 4 | 1 . 2 1 . . . Core 1 | . . 1 . . . . Reactor . | . . . . . . . Propulsion 20 | 2 . 1 13 2 . 2 Treads 11 | 2 . 1 5 2 . 1 Leg . | . . . . . . . Wheel . | . . . . . . . Hover 5 | . . . 4 . . 1 Flight 4 | . . . 4 . . . Utility 16 | . 2 4 5 2 1 2 Device 6 | . . 4 2 . . . Storage 1 | . 1 . . . . . Processor 1 | . . . . . . 1 Hackware . | . . . . . . . Protection 8 | . 1 . 3 2 1 1 Artifact . | . . . . . . . Weapon 14 | 2 . 3 7 . 2 . Energy Gun . | . . . . . . . Energy Cannon 2 | . . 1 1 . . . Ballistic Gun 2 | 2 . . . . . . Ballistic Cannon . | . . . . . . . Launcher 4 | . . 2 2 . . . Special Weapon . | . . . . . . . Impact Weapon 6 | . . . 4 . 2 . Slashing Weapon . | . . . . . . . Piercing Weapon . | . . . . . . . Special Melee Weapon . | . . . . . . . Unidentified Prototypes 1 | . . 1 . . . . Corrupted Parts 2 | . . 1 . . . 1 System Corruption 3 | . . 2 . . . 1 Parts Lost 16 | . 1 2 1 6 . 6 Power 3 | . 1 1 . 1 . . Propulsion 9 | . . . 1 4 . 4 Utility 3 | . . 1 . 1 . 1 Weapon 1 | . . . . . . 1 Highest Loss Streak 6 | . 1 1 1 5 . 6 To Critical Strikes . | . . . . . . . Average Slot Usage (%) 78 | . 90 93 81 83 65 68 Engine 4 | . 13 8 4 8 . . Core 2 | . . 4 6 . . . Treads 23 | . 28 28 27 3 22 24 Hover 3 | . . . 2 27 . . Device 12 | . . 18 13 11 11 8 Protection 8 | . 7 3 8 10 11 10 Energy Cannon 1 | . . 4 4 . . . Ballistic Gun 3 | . 28 9 . . . . Launcher 3 | . . 13 4 . . . Impact Weapon 13 | . . . 9 22 21 22 Peak Build Rating 24 | 5 7 23 24 23 18 24 Average Rating 16 | 4 6 15 18 19 16 19 On Entrance 12 | . 5 6 19 23 13 18 Naked Turns . | . . . . . . . Heaviest Build 25 | 8 21 25 25 23 16 16 Greatest Support 68 | 40 40 40 60 40 40 68 Greatest Overweight (x) 3 | . . . 3 1 . . Average Overweight (x) . | . . . . . . . Largest Inventory Capacity 10 | 5 10 10 5 5 5 5 Average Capacity 5 | 5 9 5 5 5 5 5 Most Carried 5 | . 4 5 5 5 5 5 Average Carried 4 | . 3 3 4 4 4 4 Final Capacity 10 | 5 10 5 5 5 5 5 Final Carried 5 | . 4 4 5 3 5 4 Class Distribution -------------------- 98% | Mutant Dominant Class ---------------- Mutant | -10/Materials Mutant | -10/Mines Mutant | -9/Materials Mutant | -9/Mines Mutant | -7/Zion Mutant | -6/Proximity Caves Resources | -11 -10 -10 -9 -9 -7 -6 ----------- Run | Yrd Mat Min Mat Min Zio Pro Matter Collected 1128 | 246 132 212 446 25 30 37 Remotely . | . . . . . . . Salvage Created 1486 | . 204 149 694 195 . 244 Parts 65 | . 9 16 34 5 . 1 Haulers Intercepted 4 | . . . 4 . . . Recyclers Shooed . | . . . . . . . Parts Field Recycled . | . . . . . . . Retrieved Matter . | . . . . . . . Parts Self-Destructed 8 | . . . . . . 8 Prevented 2 | . . . . . . 2 Kills | -11 -10 -10 -9 -9 -7 -6 ------- Run | Yrd Mat Min Mat Min Zio Pro Combat Hostiles Destroyed 38 | . 4 7 17 5 . 5 Melee 6 | . . . 1 2 . 3 Guns 6 | . 4 2 . . . . Cannons 3 | . . . 3 . . . AOE 14 | . . 5 9 . . . Classes Destroyed 12 | . 2 5 3 1 . 1 Worker 4 | . . 2 2 . . . Builder 1 | . . . . 1 . . Tunneler 2 | . . 1 . 1 . . Hauler 4 | . . . 4 . . . Recycler 3 | . . 1 1 1 . . Operator 1 | . 1 . . . . . Watcher 1 | . . . 1 . . . Swarmer 14 | . . 4 6 3 . 1 Grunt 14 | . 4 1 6 . . 3 Duelist 1 | . . . . . . 1 Sentry 7 | . . . 5 2 . . Assembled 2 | . . 2 . . . . Best Kill Streak 5 | . 2 3 4 4 . 5 Combat Bots Only 5 | . 2 3 3 4 . 5 Max Kills in Single Turn 3 | . 1 2 3 1 . 1 Gunslinging . | . . . . . . . Exploded 3 | . . 1 3 . . . Melee 1 | . . . 1 1 . 1 Uniques/NPCs Destroyed . | . . . . . . . Combat | -11 -10 -10 -9 -9 -7 -6 -------- Run | Yrd Mat Min Mat Min Zio Pro Hostile Shots Fired 275 | . 54 10 59 65 . 87 Missed 87 | . 19 6 18 20 . 24 Damage Taken 2895 | . 451 145 581 545 . 1173 Core 520 | . 96 14 49 92 . 269 Absorbed by Shields . | . . . . . . . Regen/Repaired (Parts) 157 | . . . 157 . . . Core Remaining (%) 78 | 100 . 56 . . . . Volleys Fired 81 | . 28 22 31 . . . Largest 2 | . 2 1 1 . . . Hottest 75 | . 40 30 75 . . . Shots Fired 109 | . 56 22 31 . . . Gun 59 | . 56 3 . . . . Cannon 21 | . . . 21 . . . Launcher 29 | . . 19 10 . . . Special . | . . . . . . . Kinetic 59 | . 56 3 . . . . Thermal 21 | . . . 21 . . . Explosive 29 | . . 19 10 . . . Electromagnetic . | . . . . . . . Robot Hit Streak 7 | . 7 3 6 . . . Robot Miss Streak 3 | . 3 2 3 . . . Penetration Max . | . . . . . . . Secondary Targets . | . . . . . . . Shots Hit Robots 104 | . 32 5 32 22 . 13 Core Hits 51 | . 12 14 21 1 . 3 Critical Kills 1 | . . . 1 . . . Critical Parts Destroyed 10 | . 1 . 3 2 . 4 Critical Strikes 11 | . 1 . 4 2 . 4 Meltdown 1 | . . . 1 . . . Destroy 1 | . 1 . . . . . Smash 9 | . . . 3 2 . 4 Melee Attacks 65 | . . . 20 26 . 19 Impact 65 | . . . 20 26 . 19 Slashing . | . . . . . . . Piercing . | . . . . . . . Sneak Attacks 7 | . . . 4 3 . . Combat Hostiles . | . . . . . . . Follow-up Attacks 10 | . . . 4 3 . 3 Damage Inflicted 3980 | . 330 382 1884 799 . 585 Guns 356 | . 330 26 . . . . Cannons 300 | . . . 300 . . . Explosions 1092 | . . 324 768 . . . Melee 2200 | . . . 816 799 . 585 Ramming 32 | . . 32 . . . . Kinetic 356 | . 330 26 . . . . Thermal 300 | . . . 300 . . . Explosive 1092 | . . 324 768 . . . Electromagnetic . | . . . . . . . Impact 2200 | . . . 816 799 . 585 Slashing . | . . . . . . . Piercing . | . . . . . . . Highest Corruption 2 | . . 2 . . . 2 Average Corruption 1 | . . 2 . . . 1 Corruption Purged . | . . . . . . . Corruption Blocked . | . . . . . . . Effects 10 | . . 6 . . . 4 Message Errors 1 | . . 1 . . . . Matter Fused 2 | . . . . . . 2 Heat Flow Errors 2 | . . 2 . . . . Energy Discharges 2 | . . 1 . . . 1 Data Loss (minor) 2 | . . 1 . . . 1 Data Loss (major) 1 | . . 1 . . . . Overload Shots . | . . . . . . . Overflow Damage 809 | . . 29 310 225 . 245 Projectiles . | . . . . . . . Explosions 50 | . . 29 21 . . . Melee 759 | . . . 289 225 . 245 Knockbacks 5 | . . . . 2 . 3 Impact 5 | . . . . 2 . 3 Kinetic . | . . . . . . . Secondary . | . . . . . . . Self-Inflicted Damage 169 | . . 116 53 . . . Shots 6 | . . 5 1 . . . Rammed 7 | . . 6 1 . . . Targets Rammed 8 | . . 7 1 . . . Kicked . | . . . . . . . Crushed 1 | . . 1 . . . . Highest Temperature 148 | . 37 148 133 . . 11 Average Temperature 32 | . 14 66 57 . . 5 Received Heat Transfer 915 | . 246 . 183 144 . 342 Siege Activations . | . . . . . . . Robots Corrupted 13 | . . . 5 6 . 2 Combat Hostiles 8 | . . . 3 3 . 2 Parts Fried 18 | . . . 5 10 . 3 Impact Corruptions 28 | . . . 8 11 . 9 Robots Melted 1 | . . . 1 . . . Combat Hostiles 1 | . . . 1 . . . Parts Melted . | . . . . . . . Heat Transferred 444 | . . . 444 . . . Parts Sabotaged . | . . . . . . . Parts Stolen . | . . . . . . . Parts Stripped . | . . . . . . . Power Chain Reactions . | . . . . . . . Alert | -11 -10 -10 -9 -9 -7 -6 ------- Run | Yrd Mat Min Mat Min Zio Pro Peak Influence 404 | . 112 173 404 226 . . Initial 156 | . . 39 1 156 . . Average 124 | . 41 50 200 163 . . Maximum Alert Level 2 | . . . 2 1 . . Low Security (%) 70 | 100 100 100 52 33 . . Level 1 28 | . . . 44 66 . . Level 2 1 | . . . 2 . . . Level 3 . | . . . . . . . Level 4 . | . . . . . . . Level 5 . | . . . . . . . High Security . | . . . . . . . Max Security . | . . . . . . . Squads Dispatched 7 | . 1 1 4 . . 1 Investigation 3 | . 1 1 1 . . . Extermination . | . . . . . . . Reinforcement 3 | . . . 3 . . . Assault 1 | . . . . . . 1 Garrison . | . . . . . . . Intercept . | . . . . . . . Searches Triggered . | . . . . . . . Construction Impeded . | . . . . . . . Haulers Reinforced . | . . . . . . . Active Scanning Responses . | . . . . . . . Cargo Convoy Interrupts . | . . . . . . . Stealth | -11 -10 -10 -9 -9 -7 -6 --------- Run | Yrd Mat Min Mat Min Zio Pro Distress Signals . | . . . . . . . Communications Jammed . | . . . . . . . Distress Signals . | . . . . . . . Times Spotted 71 | . 8 8 35 5 . 15 Peak Tracking Total 7 | . 3 3 4 3 . 7 Tactical Retreats 2 | . . 1 . . . 1 Traps | -11 -10 -10 -9 -9 -7 -6 ------- Run | Yrd Mat Min Mat Min Zio Pro Traps Triggered . | . . . . . . . Indirectly . | . . . . . . . Trap Hack Attempts . | . . . . . . . Triggered . | . . . . . . . Disarmed . | . . . . . . . Reprogrammed . | . . . . . . . Reused . | . . . . . . . Traps Extracted . | . . . . . . . Installed . | . . . . . . . Triggered 1 | . . 1 . . . . Machines | -11 -10 -10 -9 -9 -7 -6 ---------- Run | Yrd Mat Min Mat Min Zio Pro Machines Disabled 3 | . . . 3 . . . Max in Single Turn 2 | . . . 2 . . . Machines Repaired . | . . . . . . . Machines Dismantled . | . . . . . . . Machines Sabotaged . | . . . . . . . Overloaded Fab Kills . | . . . . . . . Hacking | -11 -10 -10 -9 -9 -7 -6 --------- Run | Yrd Mat Min Mat Min Zio Pro Machines Accessed 16 | . 4 1 11 . . . Terminals 11 | . 4 . 7 . . . Fabricators . | . . . . . . . Repair Stations 2 | . . . 2 . . . Recycling Units 1 | . . . 1 . . . Scanalyzers 1 | . . . 1 . . . Garrison Access . | . . . . . . . Total Hacks 48 | . 15 1 32 . . . Successful 23 | . 5 1 17 . . . Failed 25 | . 10 . 15 . . . Catastrophic 4 | . 2 . 2 . . . Database Lockouts . | . . . . . . . Manual . | . . . . . . . Terminals 38 | . 15 . 23 . . . Fabricators . | . . . . . . . Repair Stations 5 | . . . 5 . . . Recycling Units 1 | . . . 1 . . . Scanalyzers 3 | . . . 3 . . . Garrison Access . | . . . . . . . Terminal Hacks 16 | . 5 1 10 . . . Record 2 | . . . 2 . . . Robot Analysis 1 | . 1 . . . . . Prototype ID Bank 2 | . . . 2 . . . Open Door 1 | . . 1 . . . . Branch Access Points 1 | . 1 . . . . . Emergency Access Points 1 | . . . 1 . . . Terminal Index 1 | . 1 . . . . . Alert Level 1 | . . . 1 . . . Unreport Threat 1 | . . . 1 . . . Locate Traps 1 | . 1 . . . . . Dispatch Records 1 | . . . 1 . . . Hauler Manifests 1 | . 1 . . . . . Registered Components 1 | . . . 1 . . . Registered Prototypes 1 | . . . 1 . . . Fabricator Hacks . | . . . . . . . Repair Station Hacks 4 | . . . 4 . . . Scan Component 2 | . . . 2 . . . Repair 2 | . . . 2 . . . Recycling Unit Hacks 1 | . . . 1 . . . Report Inventory 1 | . . . 1 . . . Scanalyzer 2 | . . . 2 . . . Insert Component 1 | . . . 1 . . . Analyze 1 | . . . 1 . . . Garrison Access Hacks . | . . . . . . . Unauthorized Hacks . | . . . . . . . Terminals . | . . . . . . . Fabricators . | . . . . . . . Repair Stations . | . . . . . . . Recycling Units . | . . . . . . . Scanalyzers . | . . . . . . . Garrison Access . | . . . . . . . Data Cores Recovered 1 | . 1 . . . . . Used . | . . . . . . . Hacking Detections 12 | . 4 . 8 . . . Full Trace Events 7 | . 3 . 4 . . . Feedback Events . | . . . . . . . Feedback Blocked . | . . . . . . . Robot Schematics Acquired . | . . . . . . . Robots Built . | . . . . . . . Authchips . | . . . . . . . Time . | . . . . . . . Total Robot Build Rating . | . . . . . . . Part Schematics Acquired 1 | . . . 1 . . . Parts Built . | . . . . . . . Authchips . | . . . . . . . Time . | . . . . . . . Total Part Build Rating . | . . . . . . . Parts Repaired 2 | . . . 2 . . . Time 64 | . . . 64 . . . Parts Recycled . | . . . . . . . Recycled Matter . | . . . . . . . Retrieved Matter . | . . . . . . . Retrieved Components . | . . . . . . . Parts Scanalyzed 1 | . . . 1 . . . Part Schematics Acquired 1 | . . . 1 . . . Parts Damaged . | . . . . . . . Bothacking | -11 -10 -10 -9 -9 -7 -6 ------------ Run | Yrd Mat Min Mat Min Zio Pro Used RIF Installer . | . . . . . . . Robots Hacked . | . . . . . . . Non-combat . | . . . . . . . Combat . | . . . . . . . Robot Hacks Applied . | . . . . . . . Relay Couplers Released . | . . . . . . . Fabnet Peak Effective % . | . . . . . . . Robots Rewired . | . . . . . . . Allies Hacked . | . . . . . . . Hacks Repelled . | . . . . . . . Allies | -11 -10 -10 -9 -9 -7 -6 -------- Run | Yrd Mat Min Mat Min Zio Pro Total Allies 4 | . . . . . 4 . Largest Group 4 | . . . . . 4 3 Highest-Rated Group 153 | . . . . . 153 114 Highest-Rated Ally 39 | . . . . . 39 38 Total Orders . | . . . . . . . Ally Attacks 14 | . . . . . . 14 Total Damage 519 | . . . . . . 519 Kills 5 | . . . . . . 5 Allies Corrupted 1 | . . . . . . 1 Allies Melted . | . . . . . . . Intel | -11 -10 -10 -9 -9 -7 -6 ------- Run | Yrd Mat Min Mat Min Zio Pro Robot Analysis Total 1 | . 1 . . . . . Derelict Logs Recovered 3 | . . 1 . 1 1 . Drone Launches . | . . . . . . . Drone Recoveries . | . . . . . . . Exploration | -11 -10 -10 -9 -9 -7 -6 ------------- Run | Yrd Mat Min Mat Min Zio Pro Turns Passed 5116 | 71 279 1047 1176 568 1491 484 Spaces Moved 2972 | 41 122 599 634 422 899 255 Core 1 | 1 . . . . . . Treads 2509 | 40 122 599 550 48 899 251 Legs . | . . . . . . . Wheels . | . . . . . . . Hover 448 | . . . 70 374 . 4 Flight 14 | . . . 14 . . . Fastest Speed 31 | 50 160 160 31 48 165 60 Average Speed 154 | 157 160 161 151 117 165 163 Slowest Speed 260 | 160 160 165 260 170 165 170 Overloaded Moves . | . . . . . . . Propulsion Burnouts . | . . . . . . . Robots Hopped . | . . . . . . . Cave-ins Triggered . | . . . . . . . Exploration Rate (%) 57 | 4 26 91 72 83 89 39 Regions Visited 6 Branch Regions 4 Pre-discovered Areas 3 | . . 1 . . 2 . Known Exits Taken 1 | . 1 . . . . . Unknown Exits Taken 5 | 1 . 1 1 1 1 . Scrap Searched 7 | . . 1 . 1 4 1 Spaces Dug . | . . . . . . . Terrain Destroyed 169 | . . 92 77 . . . Melee . | . . . . . . . Projectile 7 | . . . 7 . . . AOE 162 | . . 92 70 . . . Terrain Rammed . | . . . . . . . Walls Destroyed . | . . . . . . . Machines Disabled . | . . . . . . . Actions | -11 -10 -10 -9 -9 -7 -6 --------- Run | Yrd Mat Min Mat Min Zio Pro Total 3286 | 45 155 652 785 452 907 290 Wait 66 | . . 3 48 3 . 12 Move 2966 | 40 121 598 633 421 898 255 Hop . | . . . . . . . Pick Up 18 | . 4 3 8 . 3 . Fast Attach 36 | 5 2 8 14 2 2 3 Attach 10 | . . 2 5 2 . 1 Detach 7 | . . . 6 . . 1 Swap 9 | . . 1 7 . 1 . Drop 30 | . . 8 16 1 3 2 Fire 81 | . 28 22 31 . . . Melee 55 | . . . 16 23 . 16 Ram . | . . . . . . . Kick . | . . . . . . . Crush 8 | . . 7 1 . . . Escape Stasis . | . . . . . . . Rewire . | . . . . . . . Trap . | . . . . . . . Miscellaneous . | . . . . . . . Route ------- -11/Scrapyard -10/Materials -10/Mines (discovered 2 exits: *Mat x2) -9/Materials (discovered 3 exits: [*Mat x2] / [*Min]) -9/Mines (discovered 2 exits: [*Mat] / *Zio) -7/Zion -6/Proximity Caves History --------- Turn | Location | Event 24 | -11/Scrapyard | Discovered new exit (range 16) 72 | -11/Scrapyard | Entered Materials 108 | -10/Materials | Identified exit to Mines 305 | -10/Materials | Build established: Mutant 351 | -10/Materials | Entered Mines 398 | -10/Mines | Discovered new exit (range 12) 433 | -10/Mines | Found a damaged Exp. Sensor Array with a note attached 436 | -10/Mines | Found Prototype Device 437 | -10/Mines | Identified Exp. Sensor Array 523 | -10/Mines | Discovered new exit (range 5) 588 | -10/Mines | Excavation squad dispatched 588 | -10/Mines | A large section of the Mines collapsed 1078 | -10/Mines | Met a Derelict shopkeep closing up shop 1398 | -10/Mines | Entered Materials 1398 | -9/Materials | Evolved 2 slots: Propulsion x2 1489 | -9/Materials | Repaired Lgt. Treads? 1686 | -9/Materials | Discovered new exit (range 5) 2015 | -9/Materials | Discovered new exit (range 7) 2273 | -9/Materials | Discovered new exit (range 9) 2359 | -9/Materials | Repaired Arm. Treads 2574 | -9/Materials | Entered Mines 2673 | -9/Mines | Learned 4 Materials zone layouts 2758 | -9/Mines | Received a Rocket Launcher from a helpful Derelict 2766 | -9/Mines | Discovered new exit (range 5) 3080 | -9/Mines | Lost 5 parts (1p3n1u) 3140 | -9/Mines | A Derelict revealed a hidden shortcut to a safe place 3142 | -9/Mines | Entered Zion 3354 | -7/Zion | Learned location of 1 exit from Factory 3517 | -7/Zion | Met Imprinter 3550 | -7/Zion | Imprinted 3552 | -7/Zion | Declared Zion's savior 3748 | -7/Zion | Learned location of Warlord (-5) 3796 | -7/Zion | Given A8's code to call for help 3836 | -7/Zion | Given the Hacking Drone Bay 3860 | -7/Zion | Found Prototype Device 3982 | -7/Zion | Found Prototype Device 4148 | -7/Zion | Acquired unknown access codes intercepted by a Zionite 4607 | -7/Zion | Discovered new exit (range 15) 4633 | -7/Zion | Entered Proximity Caves 4633 | -6/Proximity Caves | Accompanied by 3 allies 4969 | -6/Proximity Caves | Received a Behemoth hack from an annoying Tinkerer 5066 | -6/Proximity Caves | Attracted the attention of an 0b10 outpost 5092 | -6/Proximity Caves | Core integrity fell below 50% 5107 | -6/Proximity Caves | Core integrity fell below 20% 5117 | -6/Proximity Caves | Destroyed by S-27 Virus with Autogun Last Messages --------------- 05097_ Med. Treads destroyed. 05098_ System corrupted: Component data lost. 05100_ S-27 Virus destroyed. 05102_ Arm. Treads destroyed. 05107_ Lgt. Nuclear Core fries itself beyond repair. 05109_ G-50 Soldier suffers critical hit (Smash). 05109_ Destroyed Carbon-fiber Leg. 05109_ G-50 Soldier system corrupted by crushing effect. 05109_ G-50 Soldier knocked back. 05109_ Gravmag System destroyed. 05114_ Hvy. Hammer follow-up attack on S-27 Virus. 05114_ Destroyed Lgt. Nuclear Core. 05114_ S-27 Virus system corrupted by crushing effect. 05114_ S-27 Virus destroyed. 05116_ Great Maul destroyed. Map ----- +----------------------------------------------------+ | | | | | | | | | | | ?????????????????????????????????????????????????? | | ?????????????????????????????????????????????????? | | ?????????????????????????????????????????????????? | | ?????????????????????????????????????????????????? | | ?????????????????????????????????????????????????? | | ?????????????????????????????????????????????????? | | ?????????????????????????????????????????????????? | | ?????????????????????????????????????????????????? | | ?????????????????????????????????????????????????? | | ?????????????????????????????????????????????????? | | ?????????????????????????????????????????????????? | | ?????????????????????????????????????????????????? | | ?????????????????????????????????????????????????? | | ?????????????????????????????????????????????????? | | ?????????????????????????????????????????????????? | | ??????####?????????#########?????????????????????? | | ?????## #####????## ?????????????????????? | | ?????# ###### ####s###???????????????????? | | ?????# #" b#???????????????????? | | ?????### #" l#???????????????????? | | ???##??# # ### #" @ "#???????????????????? | | ??## ### ### #?## ####%s"#???????????????????? | | ??# ## #?# #??#|%#%%= "#???????????????????? | | ### #?# #??# ![%!# "#???????????????????? | | ## #?# #??# !%[%#####???????????????????? | | ## ##?# ??????????????????????? | | ##??####### #####?????????????????????? | | # ###?????????#* #?????????????????????????? | | ## ! #??????????? % #?????????????????????????? | | ## % ####??????? [##?????????????????????????? | | # ] ##????? ??????????????????????????? | | #????## ??????????????????????????? | | #?????# ??????????????????????????? | | ##?????### ??????????????????????????? | | ###????????# ??????????????????????????? | | ######????????# ??????????????????????????? | | #????????????# ??????????????????????????? | | ##?????????## #??????????????????????????? | | #????????# #????????????????????????????? | | ####????# #?????????????????????????????? | | #### ##??# #??????????????????????????????? | | # #?# ### ????????????????????????????????? | | # ### #??????????????????????????????????? | | # ## #??????????????????????????????????? | | #??????????????????????????????????? | +----------------------------------------------------+ Best States ------------- Heat Dissipation 48 Energy Generation 18 Energy Capacity 250 Matter Stores 300 Matter Capacity 300 Sight Range 16 Robot Scan Range 20 Terrain Scan Density 10 Base Temperature (-) 100 Armor Coverage 225 Evasion (%) 55 Melee Accuracy 6 Recoil Reduction 3 Item Schematics ----------------- Cryofiber Web | -9/Materials | Scanalyzed Robot Schematics ------------------ None Fabricated ------------ Nothing Alien Tech Used ----------------- None Achievements -------------- None Challenges ------------ None Game ------ Seed ReinforcedGravmagMallet Manual? 0 Play Time 00:49:44 Cumulative 14.1 hours Start 2024.08.14 @ 19:35:50 End 2024.08.14 @ 20:26:17 Sessions 1 Manual Loads 0 Difficulty Rogue Special Mode None Game No. 9 Rogue 9 Adventurer 0 Explorer 0 Win Type - Total 0 Types 0/0/0/0/0/0/0/0/0 Lore% 10 Gallery% 14 Achievement% 18 Wizard Run 0 Options --------- Layout 1 ASCII 0 Keyboard 0 Movement Numpad Keybinds 0 Fullscreen 1 Font 24/Smallcaps Map View 50x35 Zoom Use 0% Tactical HUD 1 Map Filters NONE Filters NONE Steam 1 RUN: 49c71ef7-416f-4bde-ac00-63931b30ddc3